bitfinex/quotes_SOLUSD_20260213
["timestamp","ask_amount","ask_price","bid_price","bid_amount"]
[1770973559397,12.54878339,79.689,79.661,12.55306028]
[1770973559398,12.54878339,79.689,79.662,0.90186644]
[1770973559597,4.15176726,79.68,79.662,0.90186644]
[1770973560417,4.15176726,79.68,79.66,0.2]
[1770973560619,4.15176726,79.68,79.66,1.10186644]
[1770973561218,12.54878339,79.689,79.662,0.90186644]
[1770973561719,12.54878339,79.689,79.664,0.90186644]
[1770973563414,31.36471893,79.708,79.664,0.90186644]
[1770973563615,4.15176726,79.7,79.671,0.90186644]
[1770973563819,4.15176726,79.71,79.673,0.90186644]
[1770973564022,12.54563474,79.709,79.673,0.90186644]
[1770973564600,12.54563474,79.709,79.674,55.8]
[1770973564801,12.54563474,79.709,79.675,0.90186644]
[1770973565300,12.54563474,79.709,79.66,0.2]
[1770973565301,43.9097216,79.709,79.663,0.90186644]
[1770973565503,4.15176726,79.7,79.665,0.90186644]
[1770973566020,4.15176726,79.69,79.667,0.90186644]
[1770973566498,4.15176726,79.68,79.661,12.55306672]
[1770973566705,12.54720887,79.699,79.662,0.90186644]
[1770973566900,47.17176726,79.71,79.662,0.90186644]
[1770973566901,4.15176726,79.7,79.662,0.90186644]
[1770973567622,16.69884745,79.7,79.662,0.90186644]
[1770973568220,4.15176726,79.7,79.671,0.90186644]
[1770973570129,4.15176726,79.7,79.672,12.55146099]
[1770973570309,4.15176726,79.7,79.673,0.90186644]
[1770973571641,4.15176726,79.69,79.673,0.90186644]
[1770973572924,4.15176726,79.68,79.66,0.2]
[1770973574130,4.15176726,79.67,79.66,0.2]
[1770973575836,12.55193362,79.669,79.65,0.2]
[1770973576136,4.15176726,79.67,79.65,12.75490024]
[1770973576645,4.15176726,79.71,79.661,0.90186644]
[1770973576646,4.15176726,79.7,79.661,0.90186644]
[1770973577014,4.15176726,79.7,79.671,0.90186644]
[1770973577214,4.15176726,79.7,79.673,0.90186644]
[1770973578334,16.69889879,79.7,79.673,0.90186644]
[1770973578629,4.15176726,79.7,79.675,0.90186644]
[1770973580123,12.54569873,79.709,79.675,0.90186644]
[1770973580319,4.15176726,79.7,79.675,0.90186644]
[1770973580517,4.15176726,79.7,79.677,0.90186644]
[1770973582538,12.54720887,79.699,79.673,55.9]
[1770973582839,4.15176726,79.69,79.675,0.90186644]
[1770973583018,4.15176726,79.7,79.675,0.90186644]
[1770973585032,4.15176726,79.69,79.675,0.90186644]
[1770973586737,4.15176726,79.69,79.672,55.98]
[1770973587128,4.15176726,79.69,79.669,12.5517769]
[1770973587646,4.61729252,79.726,79.669,12.5517769]
[1770973587647,4.15176726,79.7,79.671,0.90186644]
[1770973587938,4.15176726,79.69,79.671,0.90186644]
[1770973589944,4.15176726,79.69,79.673,0.90186644]
[1770973590844,4.15176726,79.69,79.672,12.55146099]
[1770973593035,4.15671849,79.69,79.669,0.90186644]
[1770973593344,12.54753341,79.697,79.668,12.55209117]
[1770973593345,4.15671849,79.68,79.668,12.55209117]
[1770973593527,4.15671849,79.69,79.668,12.55209117]
[1770973593927,4.15671849,79.69,79.669,0.90186644]
[1770973594251,4.15671849,79.71,79.66,0.90186644]
[1770973594447,4.15671849,79.67,79.651,0.90186644]
[1770973594650,94.09226058,79.709,79.651,0.90186644]
[1770973594833,4.15671849,79.69,79.651,0.90186644]
[1770973596544,12.54878339,79.689,79.653,0.90186644]
[1770973598753,4.15671849,79.68,79.655,0.90186644]
[1770973599253,4.15671849,79.69,79.655,0.90186644]
[1770973599751,4.15671849,79.69,79.656,56.08]
[1770973600053,4.15671849,79.69,79.657,0.90186644]
[1770973602658,4.61729252,79.73,79.661,0.90186644]
[1770973602846,4.15671849,79.71,79.671,0.90186644]
[1770973603353,4.15671849,79.7,79.671,0.90186644]
[1770973605236,4.15671849,79.69,79.659,0.90186644]
[1770973605836,4.15671849,79.69,79.66,0.90186644]
[1770973606049,4.15671849,79.69,79.661,0.90186644]
[1770973607161,4.15671849,79.69,79.662,12.55303657]
[1770973607462,4.15671849,79.69,79.663,0.90186644]
[1770973609646,4.15671849,79.68,79.663,0.90186644]
[1770973609848,4.15671849,79.68,79.665,0.90186644]
[1770973610167,4.15671849,79.69,79.665,0.90186644]
[1770973611240,12.547555,79.697,79.665,0.90186644]
[1770973612252,12.547555,79.697,79.667,0.90186644]
[1770973612780,4.15671849,79.71,79.671,0.90186644]
[1770973614069,4.15671849,79.7,79.671,0.90186644]
[1770973617953,4.15671849,79.7,79.673,0.90186644]
[1770973620361,4.15671849,79.7,79.675,0.90186644]
[1770973621876,4.15671849,79.71,79.675,0.90186644]
[1770973622052,31.35825897,79.724,79.675,0.90186644]
[1770973622256,31.35825897,79.724,79.655,62.77026462]
[1770973622257,4.15671849,79.73,79.691,0.90186644]
[1770973622462,4.15671849,79.73,79.693,0.90186644]
[1770973623269,12.54121069,79.738,79.701,0.90186644]
[1770973623472,12.54121069,79.738,79.702,0.90186644]
[1770973623665,12.54121069,79.738,79.704,0.90186644]
[1770973624450,12.54121069,79.738,79.706,0.90186644]
[1770973624668,12.54091473,79.739,79.706,0.90186644]
[1770973625170,4.15671849,79.75,79.711,0.90186644]
[1770973625973,4.15671849,79.74,79.711,0.90186644]
[1770973627068,4.15671849,79.74,79.712,12.54516258]
[1770973627275,4.15671849,79.74,79.713,0.90186644]
[1770973628752,4.15671849,79.74,79.715,0.90186644]
[1770973628957,16.6959304,79.75,79.715,0.90186644]
[1770973629471,62.7724215,79.78,79.741,0.90186644]
[1770973629472,4.25671849,79.78,79.741,0.90186644]
[1770973629662,4.25671849,79.78,79.743,0.90186644]
[1770973630072,4.25671849,79.78,79.751,0.90186644]
[1770973630563,16.79123935,79.78,79.753,0.90186644]
[1770973635357,16.79123935,79.78,79.755,0.90186644]
[1770973636283,4.25671849,79.78,79.756,12.53824163]
[1770973636468,4.25671849,79.8,79.787,0.85186644]
[1770973636469,0.1,79.8,79.787,0.85186644]
[1770973636662,0.1,79.8,79.78,4.15671849]
[1770973637585,0.1,79.8,79.771,56.24]
[1770973637880,0.97832233,79.8,79.77,4.15671849]
[1770973638660,0.97832233,79.8,79.772,13.35843899]
[1770973638978,0.87832233,79.799,79.773,0.82271217]
[1770973639279,0.87832233,79.789,79.768,12.53631781]
[1770973640489,0.1,79.8,79.771,0.82271217]
[1770973641177,0.1,79.8,79.781,0.82271217]
[1770973643486,0.97832233,79.8,79.781,12.53418039]
[1770973645486,0.97832233,79.8,79.782,0.82271217]
[1770973645987,0.97832233,79.8,79.774,12.53541254]
[1770973646178,0.97832233,79.8,79.775,0.82271217]
[1770973647069,0.97832233,79.8,79.777,0.82271217]
[1770973647788,0.97832233,79.8,79.776,12.53509827]
[1770973647789,0.1,79.8,79.781,0.82271217]
[1770973647989,0.97832233,79.8,79.781,0.82271217]
[1770973648587,0.97832233,79.8,79.776,12.53509827]
[1770973648884,0.87832233,79.799,79.776,12.53509827]
[1770973649086,0.87832233,79.799,79.778,12.53478402]
[1770973649271,0.87832233,79.799,79.78,4.15671849]
[1770973649676,0.1,79.8,79.781,0.82271217]
[1770973651486,0.1,79.8,79.781,13.35697459]
[1770973651683,0.91860838,79.8,79.781,13.35697459]
[1770973654395,0.1,79.8,79.782,0.87572286]
[1770973655389,0.1,79.81,79.801,0.87366135]
[1770973655588,0.87923343,79.828,79.8,4.14408502]
[1770973655786,0.1,79.83,79.81,4.14408502]
[1770973655991,0.97923343,79.83,79.81,4.14408502]
[1770973656295,0.97923343,79.83,79.806,56.32]
[1770973656498,0.97923343,79.83,79.807,12.53022917]
[1770973656792,0.97923343,79.83,79.81,4.14408502]
[1770973657300,0.87923343,79.819,79.792,56.34]
[1770973657595,0.87923343,79.825,79.801,0.87366135]
[1770973658476,0.87923343,79.825,79.802,12.53101426]
[1770973660195,0.87923343,79.825,79.802,13.40467561]
[1770973660703,0.1,79.83,79.811,0.87366135]
[1770973662175,0.1,79.83,79.793,56.34]
[1770973662176,0.1,79.83,79.813,0.87366135]
[1770973662382,0.1,79.83,79.812,12.52944419]
[1770973662383,0.1,79.85,79.821,0.87366135]
[1770973662603,0.1,79.85,79.831,0.87366135]
[1770973663988,0.87923343,79.849,79.831,0.87366135]
[1770973664785,0.1,79.85,79.832,0.87366135]
[1770973664982,0.1,79.85,79.828,12.52687059]
[1770973664983,0.97923343,79.85,79.829,0.87366135]
[1770973665182,0.97923343,79.85,79.831,0.87366135]
[1770973665990,0.1,79.85,79.831,0.87366135]
[1770973666897,0.97923343,79.85,79.831,12.52646215]
[1770973667299,0.97923343,79.85,79.82,4.14408502]
[1770973667300,0.87923343,79.849,79.827,12.52699142]
[1770973667510,0.87923343,79.849,79.819,56.34]
[1770973667999,0.87923343,79.849,79.82,0.87366135]
[1770973668182,0.87923343,79.849,79.821,0.87366135]
[1770973670310,0.87923343,79.847,79.82,4.14408502]
[1770973670509,0.87923343,79.839,79.819,56.34]
[1770973670716,0.87923343,79.839,79.819,68.86825251]
[1770973671407,0.87923343,79.839,79.819,56.34]
[1770973671618,0.87923343,79.829,79.792,0.87366135]
[1770973671784,0.87923343,79.829,79.793,56.38]
[1770973671985,0.87923343,79.819,79.793,56.38]
[1770973672182,0.87923343,79.817,79.781,13.40797403]
[1770973672400,0.87923343,79.817,79.782,57.25366135]
[1770973672607,0.87923343,79.799,79.782,56.38]
[1770973674202,0.87923343,79.799,79.783,12.53399847]
[1770973675498,0.87923343,79.799,79.782,56.38]
[1770973677304,0.87923343,79.797,79.782,56.38]
[1770973677510,0.87923343,79.797,79.77,12.53601082]
[1770973677691,0.87923343,79.797,79.771,56.42]
[1770973678305,0.87923343,79.797,79.772,12.53572682]
[1770973678607,0.87923343,79.797,79.772,13.40938817]
[1770973679305,0.87923343,79.795,79.772,12.53572682]
[1770973679804,0.87923343,79.795,79.773,0.87366135]
[1770973680009,13.40856967,79.813,79.781,0.87366135]
[1770973680207,0.87923343,79.812,79.781,0.87366135]
[1770973680404,0.87923343,79.809,79.781,0.87366135]
[1770973680796,0.87923343,79.809,79.775,0.8359289]
[1770973680997,0.92551899,79.799,79.776,56.48]
[1770973681694,0.92551899,79.799,79.777,0.8359289]
[1770973682490,0.92551899,79.799,79.779,0.8359289]
[1770973682712,0.92551899,79.809,79.781,0.8359289]
[1770973683692,13.45439642,79.816,79.781,0.8359289]
[1770973683916,0.92551899,79.815,79.781,0.8359289]
[1770973684699,0.92551899,79.815,79.791,0.8359289]
[1770973685013,12.52848391,79.819,79.793,0.8359289]
[1770973685320,0.92551899,79.819,79.795,0.8359289]
[1770973685511,0.92551899,79.819,79.797,0.8359289]
[1770973686704,0.92551899,79.819,79.796,56.52]
[1770973686913,0.92551899,79.819,79.797,0.8359289]
[1770973687116,0.92551899,79.817,79.796,56.52]
[1770973687303,0.92551899,79.817,79.797,0.8359289]
[1770973688412,0.92551899,79.829,79.801,0.8359289]
[1770973688600,0.92551899,79.835,79.803,0.8359289]
[1770973689013,12.52599143,79.834,79.803,0.8359289]
[1770973689216,0.92551899,79.829,79.799,12.53137488]
[1770973689522,0.92551899,79.829,79.8,57.3959289]
[1770973690325,0.92551899,79.829,79.8,56.56]
[1770973691204,0.92551899,79.829,79.794,12.53227059]
[1770973691419,0.92551899,79.829,79.796,0.8359289]
[1770973692225,0.92551899,79.827,79.796,0.8359289]
[1770973693013,0.92551899,79.827,79.801,0.8359289]
[1770973693208,0.92551899,79.827,79.796,13.36788538]
[1770973693409,0.92551899,79.827,79.795,56.6]
[1770973693410,0.92551899,79.809,79.795,56.6]
[1770973693724,0.92551899,79.809,79.793,56.6]
[1770973694408,0.92551899,79.809,79.787,12.53337009]
[1770973694731,0.92551899,79.819,79.791,0.8359289]
[1770973695509,4.14408502,79.82,79.791,0.8359289]
[1770973695918,0.92551899,79.819,79.791,0.8359289]
[1770973696320,0.92551899,79.819,79.793,0.8359289]
[1770973696531,0.92551899,79.819,79.795,0.8359289]
[1770973697320,0.92551899,79.819,79.792,56.64]
[1770973697321,0.92551899,79.817,79.792,56.64]
[1770973697832,0.92551899,79.817,79.793,12.53242765]
[1770973698328,0.92551899,79.817,79.794,56.68]
[1770973698508,0.92551899,79.817,79.795,12.53211354]
[1770973698707,0.92551899,79.817,79.794,56.68]
[1770973699331,0.92551899,79.815,79.794,69.21226412]
[1770973700233,0.92551899,79.815,79.794,56.68]
[1770973702032,0.92551899,79.815,79.795,12.53211354]
[1770973702427,0.92551899,79.815,79.794,56.68]
[1770973703638,4.14408502,79.81,79.794,56.68]
[1770973703837,0.92551899,79.809,79.794,56.68]
[1770973704416,4.14408502,79.81,79.794,56.68]
[1770973704731,0.92551899,79.809,79.794,56.68]
[1770973704941,0.92551899,79.799,79.794,56.68]
[1770973705635,0.92551899,79.798,79.773,12.53556967]
[1770973705832,0.92551899,79.779,79.755,0.8359289]
[1770973706039,0.92551899,79.779,79.767,56.78]
[1770973706737,0.92551899,79.779,79.767,55.83915279]
[1770973706916,0.92551899,79.779,79.767,55.21438286]
[1770973707424,12.53469905,79.779,79.767,52.44453578]
[1770973707627,12.53469905,79.779,79.753,12.53858892]
[1770973707847,4.14408502,79.77,79.754,56.78]
[1770973708350,4.14408502,79.77,79.75,56.78]
[1770973708542,31.33212306,79.791,79.75,56.78]
[1770973708543,4.14408502,79.78,79.75,57.72164971]
[1770973708744,4.14408502,79.78,79.751,0.94164971]
[1770973708950,4.14408502,79.78,79.753,0.94164971]
[1770973709744,16.67864492,79.78,79.753,0.94164971]
[1770973710044,16.67864492,79.78,79.754,57.76164971]
[1770973710616,16.67864492,79.78,79.754,0.94164971]
[1770973711017,16.67864492,79.78,79.75,57.78164971]
[1770973711241,4.14408502,79.77,79.742,0.94164971]
[1770973711439,4.14408502,79.76,79.735,0.94164971]
[1770973712132,4.14408502,79.76,79.734,12.54159323]
[1770973712330,12.53777003,79.759,79.734,12.54159323]
[1770973712515,12.53777003,79.759,79.72,4.34408502]
[1770973712516,4.14408502,79.74,79.72,0.2]
[1770973712916,4.14408502,79.75,79.72,1.14164971]
[1770973713122,4.14408502,79.75,79.722,0.94164971]
[1770973713323,12.55781053,79.759,79.722,0.94164971]
[1770973713518,4.14408502,79.76,79.721,12.54374631]
[1770973713519,4.14408502,79.76,79.731,0.94164971]
[1770973713926,0.0200405,79.765,79.731,0.94164971]
[1770973714120,12.55692337,79.765,79.731,0.94164971]
[1770973714938,0.0200405,79.765,79.732,12.54201575]
[1770973715239,4.14887715,79.78,79.751,0.94164971]
[1770973715540,4.14887715,79.78,79.75,4.14887715]
[1770973715541,0.02656981,79.769,79.743,56.86]
[1770973716243,0.02656981,79.769,79.744,0.94164971]
[1770973717632,0.02656981,79.769,79.746,0.94164971]
[1770973719753,0.03492878,79.759,79.743,56.86]
[1770973719954,0.03492878,79.759,79.741,12.54047395]
[1770973720127,0.03492878,79.759,79.74,56.96]
[1770973720329,0.03492878,79.759,79.741,12.54060019]
[1770973720540,0.03695609,79.765,79.742,0.94164971]
[1770973720830,4.14887715,79.76,79.742,0.94164971]
[1770973721760,0.03897487,79.759,79.74,56.96]
[1770973722051,0.03897487,79.765,79.742,0.94164971]
[1770973722955,4.14887715,79.76,79.742,0.94164971]
[1770973723251,4.19181115,79.76,79.742,0.94164971]
[1770973725152,4.19374673,79.76,79.743,12.54028566]
[1770973725453,0.04677987,79.759,79.74,56.96]
[1770973726865,0.04865403,79.758,79.74,56.96]
[1770973728161,0.04865403,79.758,79.741,0.94164971]
[1770973728333,4.14887715,79.76,79.741,0.94164971]
[1770973729258,4.14887715,79.76,79.743,0.94164971]
[1770973730331,0.05601208,79.77,79.743,0.94164971]
[1770973730639,0.05601208,79.769,79.743,0.94164971]
[1770973730846,4.14887715,79.76,79.743,0.94164971]
[1770973732254,0.05778097,79.759,79.74,57.90164971]
[1770973732438,0.05778097,79.759,79.741,0.94164971]
[1770973732838,4.14887715,79.76,79.741,0.94164971]
[1770973734257,0.05953981,79.765,79.743,0.94164971]
[1770973734555,4.14887715,79.76,79.743,0.94164971]
[1770973736360,4.14887715,79.77,79.745,0.94164971]
[1770973736738,0.0664005,79.778,79.745,0.94164971]
[1770973737238,4.14887715,79.77,79.745,0.94164971]
[1770973738145,0.0664005,79.778,79.747,0.94164971]
[1770973739142,4.14887715,79.78,79.751,0.94164971]
[1770973739348,0.07131869,79.779,79.753,0.94164971]
[1770973740456,4.14887715,79.78,79.755,0.94164971]
[1770973740846,0.07451067,79.779,79.755,0.94164971]
[1770973741253,4.14887715,79.78,79.752,57.26]
[1770973741254,0.076097,79.769,79.752,57.26]
[1770973741764,4.14887715,79.77,79.754,0.94164971]
[1770973742355,0.076097,79.775,79.754,0.94164971]
[1770973742669,4.14887715,79.77,79.754,0.94164971]
[1770973744570,4.14887715,79.77,79.755,13.48004855]
[1770973744874,0.076097,79.775,79.756,0.94164971]
[1770973745674,4.14887715,79.77,79.757,12.53808443]
[1770973746753,12.53148535,79.799,79.758,0.94164971]
[1770973746754,4.14887715,79.78,79.758,0.94164971]
[1770973747375,0.08367713,79.779,79.758,0.94164971]
[1770973747562,0.08367713,79.779,79.757,12.53808443]
[1770973747900,0.08514746,79.779,79.756,0.94164971]
[1770973748455,4.14887715,79.78,79.756,0.94164971]
[1770973748656,4.23546121,79.78,79.756,0.94164971]
[1770973748974,0.08658406,79.779,79.756,0.94164971]
[1770973749174,0.08658406,79.783,79.756,0.94164971]
[1770973749358,4.14887715,79.78,79.756,0.94164971]
[1770973749551,4.23688658,79.78,79.756,0.94164971]
[1770973749965,0.08800943,79.779,79.758,0.94164971]
[1770973750653,4.14887715,79.77,79.753,13.48023349]
[1770973750861,4.14887715,79.77,79.754,0.94164971]
[1770973751454,4.14887715,79.77,79.754,13.48020576]
[1770973751975,0.08942992,79.773,79.755,0.94164971]
[1770973753074,0.09223622,79.778,79.755,0.94164971]
[1770973753264,0.09360888,79.779,79.755,0.94164971]
[1770973755259,0.09360888,79.779,79.757,0.94164971]
[1770973756579,4.14887715,79.78,79.759,0.94164971]
[1770973756783,0.0976535,79.779,79.759,0.94164971]
[1770973758187,0.09896451,79.778,79.759,0.94164971]
[1770973758391,0.10024982,79.769,79.752,57.26]
[1770973758895,0.10024982,79.774,79.754,0.94164971]
[1770973759174,0.10024982,79.779,79.754,0.94164971]
[1770973760438,0.10024982,79.779,79.755,12.53839884]
[1770973760675,4.14887715,79.78,79.756,0.94164971]
[1770973760863,0.10279132,79.789,79.756,0.94164971]
[1770973761064,50.09133042,79.855,79.758,0.94164971]
[1770973761065,12.53217858,79.795,79.758,0.94164971]
[1770973761259,0.10279132,79.794,79.761,0.94164971]
[1770973762572,12.53148535,79.799,79.763,0.94164971]
[1770973762763,0.10528461,79.804,79.78,4.14887715]
[1770973762963,0.10528461,79.809,79.781,0.94164971]
[1770973763581,12.52863437,79.818,79.781,0.94164971]
[1770973763582,0.10650617,79.817,79.781,0.94164971]
[1770973764371,0.10650617,79.817,79.77,4.14887715]
[1770973764372,4.25658997,79.82,79.791,0.94164971]
[1770973764578,4.25658997,79.82,79.793,0.94164971]
[1770973764769,0.10771282,79.829,79.801,0.94164971]
[1770973765788,0.10890702,79.838,79.801,0.94164971]
[1770973765971,0.10890702,79.829,79.801,0.94164971]
[1770973766881,0.10890702,79.829,79.742,50.16147951]
[1770973766882,0.1100874,79.809,79.761,0.94164971]
[1770973767202,4.26013568,79.82,79.791,0.94164971]
[1770973767382,0.11125853,79.819,79.791,0.94164971]
[1770973768701,0.11241715,79.809,79.783,52.54]
[1770973768999,0.11241715,79.809,79.783,65.07384768]
[1770973769174,4.14887715,79.8,79.783,65.07384768]
[1770973770498,0.11467127,79.799,79.778,0.94164971]
[1770973770689,0.11579246,79.789,79.771,12.53577832]
[1770973770897,0.11579246,79.795,79.773,12.53556967]
[1770973773775,12.53148535,79.799,79.762,12.53717659]
[1770973773776,0.1190838,79.789,79.762,12.53717659]
[1770973773978,0.1190838,79.789,79.759,0.94164971]
[1770973773979,0.1190838,79.779,79.755,57.68]
[1770973774198,0.1190838,79.769,79.74,0.94164971]
[1770973774402,0.1190838,79.769,79.732,0.94164971]
[1770973774600,0.12015252,79.759,79.732,0.94164971]
[1770973775691,0.12226193,79.769,79.733,12.54185845]
[1770973775892,4.14887715,79.76,79.734,0.94228526]
[1770973776087,0.12226193,79.759,79.734,0.94228526]
[1770973777400,4.14997156,79.77,79.72,0.2]
[1770973777401,0.12431618,79.749,79.72,0.2]
[1770973777606,0.12431618,79.739,79.72,0.2]
[1770973777799,4.14997156,79.74,79.721,13.48603157]
[1770973778002,4.14997156,79.74,79.721,0.94228526]
[1770973778610,0.12431618,79.745,79.722,0.94228526]
[1770973779191,4.14997156,79.74,79.722,0.94228526]
[1770973779588,4.14997156,79.75,79.722,0.94228526]
[1770973779791,4.14997156,79.74,79.722,0.94228526]
[1770973780131,0.12631107,79.75,79.72,0.2]
[1770973780132,0.12631107,79.75,79.724,0.94228526]
[1770973780309,4.27628263,79.75,79.724,0.94228526]
[1770973780513,4.14997156,79.75,79.724,0.94228526]
[1770973781313,0.12728564,79.766,79.731,0.94228526]
[1770973781729,0.12824982,79.759,79.731,0.94228526]
[1770973781891,0.12824982,79.758,79.731,13.48443375]
[1770973782091,0.12824982,79.758,79.732,0.94228526]
[1770973783315,0.12824982,79.758,79.733,12.54185845]
[1770973783695,0.12824982,79.758,79.733,13.48414371]
[1770973784508,0.12824982,79.758,79.723,89.01857908]
[1770973784509,0.1311229,79.749,79.724,0.94228526]
[1770973785217,0.1311229,79.739,79.723,57.66]
[1770973785717,12.67190149,79.746,79.724,0.94228526]
[1770973786021,4.14997156,79.75,79.725,0.94228526]
[1770973787918,4.14997156,79.75,79.727,0.94228526]
[1770973789229,4.14997156,79.75,79.728,12.54264499]
[1770973789434,4.14997156,79.75,79.729,0.94228526]
[1770973792018,4.14997156,79.76,79.731,0.94228526]
[1770973792841,0.13834496,79.759,79.731,0.94228526]
[1770973793449,4.14997156,79.76,79.731,0.94228526]
[1770973793738,0.139216,79.759,79.731,0.94228526]
[1770973794145,0.139216,79.759,79.733,0.94228526]
[1770973794521,0.14007804,79.759,79.733,0.94228526]
[1770973796238,4.14997156,79.76,79.735,0.94228526]
[1770973796419,4.14997156,79.75,79.734,12.54170115]
[1770973796619,0.1417387,79.749,79.734,12.54170115]
[1770973796819,0.1417387,79.755,79.734,12.54170115]
[1770973797023,0.1417387,79.755,79.734,13.48398641]
[1770973797333,4.14997156,79.76,79.734,13.48398641]
[1770973797334,4.29251161,79.76,79.735,0.94228526]
[1770973798420,4.14997156,79.76,79.737,0.94228526]
[1770973798825,41.36,79.783,79.737,0.94228526]
[1770973798826,4.14997156,79.77,79.737,0.94228526]
[1770973799227,0.14414416,79.778,79.741,0.94228526]
[1770973799440,0.14414416,79.778,79.74,4.14997156]
[1770973799441,0.14414416,79.778,79.751,0.94228526]
[1770973800232,4.14997156,79.77,79.751,0.94228526]
[1770973800542,4.14997156,79.77,79.74,4.14997156]
[1770973800543,4.14997156,79.77,79.753,0.97265216]
[1770973800743,0.14414416,79.773,79.753,0.97265216]
[1770973802229,4.14997156,79.77,79.753,0.97265216]
[1770973802838,0.14723441,79.759,79.741,12.54060019]
[1770973803035,12.53619827,79.769,79.72,1.17265216]
[1770973803036,0.14723441,79.749,79.72,1.17265216]
[1770973803244,0.14723441,79.749,79.721,0.97265216]
[1770973805722,4.14997156,79.74,79.722,12.54358897]
[1770973805921,0.149436,79.729,79.72,0.2]
[1770973806834,0.1501646,79.736,79.72,0.2]
[1770973807223,4.14997156,79.73,79.72,0.2]
[1770973808438,0.15161277,79.739,79.721,0.97265216]
[1770973808641,12.54012841,79.744,79.721,0.97265216]
[1770973808855,4.14997156,79.74,79.721,0.97265216]
[1770973809152,4.30158433,79.74,79.721,0.97265216]
[1770973810447,4.14997156,79.74,79.722,13.51624113]
[1770973810629,4.14997156,79.74,79.723,0.97265216]
[1770973811045,4.30300006,79.74,79.72,0.2]
[1770973811247,4.30300006,79.74,79.72,1.17265216]
[1770973811647,0.15371762,79.739,79.72,0.2]
[1770973812249,0.15441744,79.747,79.72,0.2]
[1770973812450,0.15441744,79.739,79.72,0.2]
[1770973812657,0.15441744,79.729,79.72,0.2]
[1770973813127,0.15441744,79.735,79.72,0.2]
[1770973813332,4.14997156,79.74,79.72,0.2]
[1770973813549,4.14997156,79.74,79.721,0.97265216]
[1770973814344,0.15577783,79.738,79.72,0.2]
[1770973817553,4.30771296,79.73,79.72,0.2]
[1770973818462,4.14997156,79.73,79.72,0.2]
[1770973819359,0.15838224,79.735,79.72,0.2]
[1770973820657,4.14997156,79.74,79.72,0.2]
[1770973820658,4.14997156,79.74,79.721,0.97265216]
[1770973820848,4.30961199,79.74,79.721,0.97265216]
[1770973821555,4.14997156,79.74,79.721,0.97265216]
[1770973821747,4.14997156,79.74,79.72,0.2]
[1770973821748,0.16027392,79.738,79.72,0.2]
[1770973822358,4.14997156,79.73,79.72,0.2]
[1770973822655,0.16088208,79.732,79.72,0.2]
[1770973822860,12.70179681,79.739,79.721,0.97265216]
[1770973823259,0.16148242,79.738,79.721,0.97265216]
[1770973823460,0.16148242,79.738,79.72,0.2]
[1770973825362,41.48,79.752,79.721,0.97265216]
[1770973825363,0.16267986,79.749,79.721,0.97265216]
[1770973826353,12.70207246,79.749,79.722,0.97265216]
[1770973827748,12.5385765,79.754,79.724,0.97265216]
[1770973828149,12.70297444,79.754,79.724,0.97265216]
[1770973828353,4.14997156,79.75,79.724,0.97265216]
[1770973829967,16.85411831,79.75,79.725,12.54311696]
[1770973830167,16.85411831,79.75,79.726,0.97265216]
[1770973830478,4.31493269,79.75,79.726,0.97265216]
[1770973831472,0.16662869,79.749,79.726,0.97265216]
[1770973832271,4.14997156,79.75,79.728,0.95941077]
[1770973832768,0.16715316,79.764,79.731,0.95941077]
[1770973833072,0.16715316,79.759,79.731,0.95941077]
[1770973833364,0.16715316,79.749,79.731,0.95941077]
[1770973834160,0.16715316,79.749,79.733,0.95941077]
[1770973835665,0.16715316,79.749,79.72,62.08997156]
[1770973835666,0.16925848,79.769,79.735,0.99051632]
[1770973835853,0.16925848,79.768,79.735,0.99051632]
[1770973837380,0.17026823,79.768,79.735,0.99051632]
[1770973837579,0.17026823,79.768,79.736,12.54138657]
[1770973837754,0.17026823,79.768,79.737,0.99051632]
[1770973840489,4.14879866,79.76,79.739,0.99051632]
[1770973840657,4.32052567,79.76,79.739,0.99051632]
[1770973841286,0.17219496,79.767,79.739,0.99051632]
[1770973841578,12.53619827,79.769,79.739,0.99051632]
[1770973841782,0.17219496,79.768,79.739,0.99051632]
[1770973842871,0.17266975,79.774,79.741,0.99051632]
[1770973843064,12.7081849,79.774,79.741,0.99051632]
[1770973843262,4.14879866,79.77,79.741,0.99051632]
[1770973843473,0.17313635,79.769,79.741,0.99051632]
[1770973845983,0.17405766,79.784,79.743,0.99051632]
[1770973846190,0.17405766,79.779,79.751,0.99051632]
[1770973846589,41.58,79.787,79.751,0.99051632]
[1770973846793,0.17451064,79.787,79.761,0.99051632]
[1770973848067,12.53305593,79.789,79.737,0.99051632]
[1770973848068,0.17495786,79.769,79.737,0.99051632]
[1770973848287,0.17495786,79.759,79.733,0.99051632]
[1770973852377,0.17495786,79.759,79.735,0.99051632]
[1770973852584,0.17495786,79.759,79.726,0.99051632]
[1770973852906,0.1771391,79.749,79.726,0.99051632]
[1770973853689,0.1771391,79.749,79.725,57.72]
[1770973853993,0.1771391,79.749,79.725,58.71051632]